Cogmind - Beta 9.6 @@@ ROGUE MODE // 2020.08.12 @ 18:49:12 Player: Henry Result: Destroyed by exploding Fusion Modulator Performance ------------- Evolutions (1) 500 Regions Visited (2) 400 Robots Destroyed (23) 115 Value Destroyed (350) 350 Prototype IDs (0) 0 Alien Tech Used (0) 0 Bonus (0) 0 TOTAL SCORE: 1365 Bonus ------- None Cogmind --------- Core Integrity 0/400 Matter 300/300 Energy 100/100 System Corruption 0% Temperature Cool (36) Movement Core (50) Location -9/Materials Parts ------- > --- POWER (1) -------- (None) > --- PROPULSION (2) --- (None) > --- UTILITY (2) ------ Signal Interpreter > --- WEAPON (4) ------- (None) > --- INVENTORY (4) ---- Light Ion Engine Wheel Wheel Peak State ------------ > --- POWER ------------ Light Nuclear Core > --- PROPULSION ------- Wheel Compact Wheel > --- UTILITY ---------- Sensor Array Signal Interpreter > --- WEAPON ----------- Assault Rifle Light Assault Rifle Light Assault Rifle > --- INVENTORY -------- Light Ion Engine Wheel Wheel [Rating: 10] Favorites ----------- Power Ion Engine Engine Ion Engine Power Core Light Nuclear Core Propulsion Wheel Treads Light Treads Wheel Wheel Utility Signal Interpreter Device Sensor Array Processor Signal Interpreter Weapon Assault Rifle Energy Gun Small Laser Ballistic Gun Assault Rifle Build | -11 -10 -9 ------- Run | Scr Mat Mat Slots Evolved 2 | . . 2 Power . | . . . Propulsion . | . . . Utility . | . . . Weapon 2 | . . 2 Parts Attached 16 | 6 9 1 Power 2 | 1 1 . Engine 1 | 1 . . Core 1 | . 1 . Reactor . | . . . Propulsion 6 | 3 3 . Treads 1 | 1 . . Leg . | . . . Wheel 5 | 2 3 . Hover . | . . . Flight . | . . . Utility 2 | . 2 . Device 1 | . 1 . Storage . | . . . Processor 1 | . 1 . Hackware . | . . . Protection . | . . . Artifact . | . . . Weapon 6 | 2 3 1 Energy Gun 1 | 1 . . Energy Cannon . | . . . Ballistic Gun 5 | 1 3 1 Ballistic Cannon . | . . . Launcher . | . . . Special Weapon . | . . . Impact Weapon . | . . . Slashing Weapon . | . . . Piercing Weapon . | . . . Special Melee Weapon . | . . . Unidentified Prototypes . | . . . Parts Lost 8 | . 1 7 Power 1 | . . 1 Propulsion 2 | . . 2 Utility 1 | . . 1 Weapon 4 | . 1 3 Highest Loss Streak 7 | . 1 7 Average Slot Usage (%) 91 | . 95 70 Engine 4 | . 5 . Core 8 | . 8 9 Wheel 26 | . 28 18 Device 11 | . 11 8 Processor 11 | . 12 11 Energy Gun 2 | . 3 . Ballistic Gun 24 | . 24 23 Naked Turns . | . . . Heaviest Build 10 | 8 9 10 Greatest Support 26 | 20 26 26 Greatest Overweight (x) . | . . . Average Overweight (x) . | . . . Largest Inventory Capacity 4 | 4 4 4 Average Capacity 4 | 4 4 4 Most Carried 4 | 4 4 3 Average Carried 3 | 2 3 3 Final Capacity 4 | 4 4 4 Final Carried 4 | 4 4 3 Class Distribution -------------------- 47% | Mutant 46% | Scavenger-Mutant 5% | Scavenger-Skirmisher Dominant Class ---------------- Scavenger-Mutant | -10/Materials Scavenger-Skirmisher | -9/Materials Resources | -11 -10 -9 ----------- Run | Scr Mat Mat Matter Collected 482 | 260 222 . Remotely . | . . . Salvage Created 664 | 178 472 14 Parts 56 | 13 41 2 Haulers Intercepted . | . . . Recyclers Shooed . | . . . Parts Field Recycled . | . . . Retrieved Matter . | . . . Parts Self-Destructed . | . . . Prevented . | . . . Kills | -11 -10 -9 ------- Run | Scr Mat Mat Combat Hostiles Destroyed 13 | . 12 1 Melee 1 | . . 1 Guns 12 | . 12 . Classes Destroyed 7 | 3 4 . Worker 2 | 1 1 . Builder 1 | . 1 . Tunneler 4 | 4 . . Recycler 2 | 1 1 . Watcher 1 | . 1 . Swarmer 7 | . 6 1 Grunt 6 | . 6 . Best Kill Streak 5 | 2 5 1 Combat Bots Only 4 | . 4 1 Max Kills in Single Turn 2 | 1 2 1 Gunslinging . | . . . Exploded . | . . . Melee 1 | . . 1 Uniques/NPCs Destroyed . | . . . Combat | -11 -10 -9 -------- Run | Scr Mat Mat Damage Taken 1032 | . 313 719 Core 494 | . 62 432 Absorbed by Shields . | . . . Core Remaining (%) 87 | 100 75 . Volleys Fired 80 | 37 37 6 Largest 3 | 1 2 3 Hottest 60 | 40 60 60 Shots Fired 122 | 37 71 14 Gun 122 | 37 71 14 Cannon . | . . . Launcher . | . . . Special . | . . . Kinetic 77 | . 63 14 Thermal 45 | 37 8 . Explosive . | . . . Electromagnetic . | . . . Robot Hit Streak 8 | 8 5 3 Robot Miss Streak 5 | 3 4 5 Penetration Max . | . . . Secondary Targets . | . . . Shots Hit Robots 68 | 27 35 6 Core Hits 30 | 7 21 2 Critical Hits . | . . . Critical Kills . | . . . Critical Parts Destroyed . | . . . Melee Attacks . | . . . Impact . | . . . Slashing . | . . . Piercing . | . . . Sneak Attacks . | . . . Combat Hostiles . | . . . Follow-up Attacks . | . . . Damage Inflicted 745 | 307 421 17 Guns 742 | 307 421 14 Cannons . | . . . Explosions . | . . . Melee . | . . . Ramming 3 | . . 3 Kinetic 349 | . 335 14 Thermal 393 | 307 86 . Explosive . | . . . Electromagnetic . | . . . Impact . | . . . Slashing . | . . . Piercing . | . . . Highest Corruption . | . . . Average Corruption . | . . . Corruption Purged . | . . . Overload Shots . | . . . Overflow Damage . | . . . Projectiles . | . . . Explosions . | . . . Melee . | . . . Knockbacks . | . . . Impact . | . . . Kinetic . | . . . Secondary . | . . . Self-Inflicted Damage 1 | . . 1 Shots . | . . . Rammed 1 | . . 1 Targets Rammed 1 | . . 1 Kicked . | . . . Crushed . | . . . Highest Temperature 30 | . 30 18 Average Temperature 8 | . 7 13 Received Heat Transfer 84 | . 60 24 Siege Activations . | . . . Robots Corrupted . | . . . Combat Hostiles . | . . . Parts Fried . | . . . Impact Corruptions . | . . . Robots Melted . | . . . Combat Hostiles . | . . . Parts Melted . | . . . Heat Transferred 900 | 700 200 . Parts Sabotaged . | . . . Parts Stolen . | . . . Parts Stripped . | . . . Power Chain Reactions . | . . . Missiles Intercepted . | . . . Alert | -11 -10 -9 ------- Run | Scr Mat Mat Peak Influence 224 | 30 224 39 Average Influence 75 | 12 120 24 Maximum Alert Level 1 | . 1 . Low Security (%) 82 | 100 69 100 Level 1 17 | . 30 . Level 2 . | . . . Level 3 . | . . . Level 4 . | . . . Level 5 . | . . . High Security . | . . . Max Security . | . . . Squads Dispatched 5 | . 3 2 Investigation 2 | . 1 1 Extermination . | . . . Reinforcement 3 | . 2 1 Assault . | . . . Garrison . | . . . Intercept . | . . . Construction Impeded . | . . . Haulers Reinforced . | . . . Stealth | -11 -10 -9 --------- Run | Scr Mat Mat Distress Signals 3 | . 2 1 Communications Jammed . | . . . Distress Signals . | . . . Times Spotted 34 | . 22 12 Peak Tracking Total 8 | . 5 8 Tactical Retreats 4 | . 2 2 Traps | -11 -10 -9 ------- Run | Scr Mat Mat Traps Triggered 2 | . 1 1 Indirectly . | . . . Trap Hack Attempts . | . . . Triggered . | . . . Disarmed . | . . . Reprogrammed . | . . . Reused . | . . . Traps Extracted . | . . . Installed . | . . . Triggered . | . . . Machines | -11 -10 -9 ---------- Run | Scr Mat Mat Machines Disabled . | . . . Max in Single Turn . | . . . Machines Sabotaged . | . . . Garrisons Compromised . | . . . Overloaded Fab Kills . | . . . Fab Network Shutdowns . | . . . Hacking | -11 -10 -9 --------- Run | Scr Mat Mat Machines Accessed 3 | . 3 . Terminals 3 | . 3 . Fabricators . | . . . Repair Stations . | . . . Recycling Units . | . . . Scanalyzers . | . . . Garrison Access . | . . . Total Hacks 8 | . 8 . Successful 4 | . 4 . Failed 4 | . 4 . Catastrophic . | . . . Database Lockouts . | . . . Manual 8 | . 8 . Terminals 8 | . 8 . Fabricators . | . . . Repair Stations . | . . . Recycling Units . | . . . Scanalyzers . | . . . Garrison Access . | . . . Terminal Hacks 1 | . 1 . Unreport Threat 1 | . 1 . Fabricator Hacks . | . . . Repair Station Hacks . | . . . Recycling Unit Hacks . | . . . Scanalyzer . | . . . Garrison Access Hacks . | . . . Unauthorized Hacks 3 | . 3 . Terminals 3 | . 3 . Botnet 3 | . 3 . Fabricators . | . . . Repair Stations . | . . . Recycling Units . | . . . Scanalyzers . | . . . Garrison Access . | . . . Data Cores Recovered . | . . . Used . | . . . Hacking Detections 2 | . 2 . Full Trace Events 1 | . 1 . Feedback Events . | . . . Feedback Blocked . | . . . Robot Schematics Acquired . | . . . Robots Built . | . . . Matter . | . . . Time . | . . . Total Robot Build Rating . | . . . Part Schematics Acquired . | . . . Parts Built . | . . . Matter . | . . . Time . | . . . Total Part Build Rating . | . . . Parts Repaired . | . . . Time . | . . . Parts Recycled . | . . . Recycled Matter . | . . . Retrieved Matter . | . . . Retrieved Components . | . . . Parts Scanalyzed . | . . . Part Schematics Acquired . | . . . Parts Damaged . | . . . Bothacking | -11 -10 -9 ------------ Run | Scr Mat Mat Used RIF Installer . | . . . Robots Hacked . | . . . Non-combat . | . . . Combat . | . . . Robot Hacks Applied . | . . . Relay Couplers Released . | . . . Robots Rewired . | . . . Allies Hacked . | . . . Hacks Repelled . | . . . Allies | -11 -10 -9 -------- Run | Scr Mat Mat Total Allies . | . . . Largest Group . | . . . Highest-Rated Group . | . . . Highest-Rated Ally . | . . . Total Orders . | . . . Ally Attacks . | . . . Total Damage . | . . . Kills . | . . . Allies Corrupted . | . . . Allies Melted . | . . . Intel | -11 -10 -9 ------- Run | Scr Mat Mat Robot Analysis Total . | . . . Derelict Logs Recovered . | . . . Drone Launches . | . . . Drone Recoveries . | . . . Exploration | -11 -10 -9 ------------- Run | Scr Mat Mat Turns Passed 787 | 244 452 91 Spaces Moved 656 | 193 368 95 Core 34 | 2 . 32 Treads 1 | 1 . . Legs . | . . . Wheels 621 | 190 368 63 Hover . | . . . Flight . | . . . Fastest Speed 50 | 50 80 50 Average Speed 81 | 80 82 75 Slowest Speed 160 | 160 90 90 Overloaded Moves . | . . . Propulsion Burnouts . | . . . Robots Hopped . | . . . Cave-ins Triggered . | . . . Exploration Rate (%) 28 | 8 60 17 Regions Visited 2 Branch Regions . Pre-discovered Areas . | . . . Known Exits Taken 1 | . 1 . Unknown Exits Taken 1 | 1 . . Scrap Searched . | . . . Spaces Dug . | . . . Terrain Destroyed . | . . . Melee . | . . . Projectile . | . . . AOE . | . . . Actions | -11 -10 -9 --------- Run | Scr Mat Mat Total 796 | 243 449 104 Wait 31 | . 30 1 Move 654 | 192 367 95 Hop . | . . . Pick Up 5 | 5 . . Fast Attach 10 | 6 4 . Attach 1 | . . 1 Detach 1 | 1 . . Swap 5 | . 5 . Drop 8 | 2 6 . Fire 80 | 37 37 6 Melee . | . . . Ram 1 | . . 1 Kick . | . . . Crush . | . . . Escape Stasis . | . . . Rewire . | . . . Trap . | . . . Miscellaneous . | . . . Route ------- -11/Scrapyard -10/Materials (discovered 2 exits: *Mat / *Min) -9/Materials History --------- Turn | Location | Event 28 | -11/Scrapyard | Discovered new exit (range 15) 245 | -11/Scrapyard | Entered Materials 303 | -10/Materials | Build established: Mutant 526 | -10/Materials | Discovered new exit (range 4) 528 | -10/Materials | Identified exit to Materials 623 | -10/Materials | Discovered new exit (range 16) 636 | -10/Materials | Identified exit to Mines 659 | -10/Materials | Build established: Scavenger-Mutant 697 | -10/Materials | Entered another Materials area 697 | -9/Materials | Evolved 2 slots: Weapon x2 788 | -9/Materials | Destroyed by exploding Fusion Modulator Last Messages --------------- 00761_ Sensor Array destroyed. 00761_ Lgt. Assault Rifle destroyed. 00762_ Com. Wheel destroyed. 00763_ Slammed into S-10 Pest. 00763_ S-10 Pest destroyed. 00769_ K-01 Serf collects debris. 00771_ Lgt. Nuclear Core destroyed. 00772_ R-06 Scavenger collects Flight Unit. 00772_ K-01 Serf collects debris. 00772_ Wheel destroyed. 00772_ U-05 Engineer lays Concrete. 00777_ K-01 Serf collects debris. 00788_ Neutrino Reactor explodes. 00788_ S-10 Pest destroyed. 00788_ Atomic Centrifuge disabled. 00788_ S-10 Pest destroyed. 00788_ Chain reaction triggered in Lgt. Ion Engine. 00788_ G-34 Mercenary destroyed. 00788_ Fusion Modulator explodes. 00788_ G-34 Mercenary destroyed. Map ----- +----------------------------------------------------+ | ?????????????????????????????????????????????????? | | ?????????????????????????????????????????????????? | | ?????????????????????????????????????????????????? | | ???????????????#########?????????????????????????? | | ???????????????# ! #?????????????????????????? | | ???????????????# T #?????????????????????????? | | ################ #?????????????????????????? | | ## #?????????????????????????? | | / #?????????????????????????? | | ## #???????????????"?????????? | | ########### ## """" #????????? "?????????? | | ??????????# ## """" #????????? ""?????????? | | ??????????# ## """" #????????? """????????? | | ??????????+ ## #????????? """? ??????? | | ??????????# ## =* !#????????? " ??????? | | ??????????# #####+####????????# #?????? | | ??????????# % ########### #?????? | | ??????????# r r """ #?????? | | ??????????# """ #?????? | | ??????????# """ #?????? | | ??????????# * " #?????? | | ??????????# #?????? | | ??????????# g k #?????? | | ??????????# u = #?????? | | ??????????# %% #?????? | | ??????????# """ u @ """ #?????? | | ??????????# """ """ #?????? | | ??????????# """ """ #?????? | | ??????????# r u ########?????? | | ??????????# #????????????? | | ??????????# """ """ """ """ #????????????? | | ????????????## """ """ """ """ #????????????? | | ?????????????# """ """ """ """ ?????????? | | ?????????????#?? ?????????? | | ???????????????? ????????? | | ???????????????? ???????? | | ??????????????? ?? ???????? | | ?????????????????######### ??????? | | ?????????????????????????# #?????? | | ?????????????????????????# ?????? | | ?????????????????????????+ #######??????? | | ?????????????????????????# #????????????? | | ?????????????????????????## ##### #????????????? | | ??????????????????????????# ????? #????????????? | | ??????????????????????????# ????? #????????????? | | ??????????????????????????# ?????? ??????????????? | | ?????????????????????????????????????????????????? | | ?????????????????????????????????????????????????? | | ?????????????????????????????????????????????????? | | ?????????????????????????????????????????????????? | +----------------------------------------------------+ Best States ------------- Heat Dissipation 28 Energy Generation 14 Energy Capacity 250 Matter Stores 300 Matter Capacity 300 Sight Range 16 Robot Scan Range 10 Terrain Scan Density 10 Evasion (%) 50 Item Schematics ----------------- None Robot Schematics ------------------ None Fabricated ------------ Nothing Alien Tech Used ----------------- None Achievements -------------- None Challenges ------------ None Game ------ Seed FlyingHeavyLauncher Manual? 0 Play Time 00:10:37 Cumulative 416.3 hours Start 2020.08.12 @ 18:36:01 End 2020.08.12 @ 18:49:12 Sessions 1 Manual Loads 0 Difficulty Rogue Special Mode None Game No. 113 Rogue 113 Adventurer 0 Explorer 0 Win Type - Total 0 Types 0/0/0/0/0/0/0 Lore% 21 Gallery% 47 Achievement% 23 Wizard Run 0 Options --------- ASCII 0 Keyboard 1 Movement Numpad Keybinds 0 Fullscreen 2 Font 18/X11Bold Map View 76x50 Tactical HUD 1 Map Filters NONE Filters NONE Steam 1 RUN: a057602a-d900-4e66-8664-548c99e79051